[Event "Live Chess"]
[Site "Chess.com"]
[Date "2023.05.21"]
[Round "-"]
[White "JoeRoot66"]
[Black "RichardABates"]
[Result "0-1"]
[WhiteElo "1901"]
[BlackElo "2148"]
[TimeControl "300"]
[EndTime "7:00:56 PDT"]
[Termination "RichardABates won by resignation"]

1. e4 {[%clk 0:04:59.2]} 1... c5 {[%clk 0:04:58.2]} 2. c3 {[%clk 0:04:58]} 2...
Nf6 {[%clk 0:04:56]} 3. e5 {[%clk 0:04:57]} 3... Nd5 {[%clk 0:04:54.5]} 4. d4
{[%clk 0:04:56.7]} 4... cxd4 {[%clk 0:04:52.3]} 5. Nf3 {[%clk 0:04:56.4]} 5...
e6 {[%clk 0:04:50.8]} 6. cxd4 {[%clk 0:04:55.7]} 6... d6 {[%clk 0:04:47.9]} 7.
Bc4 {[%clk 0:04:55.2]} 7... Be7 {[%clk 0:04:23.7]} 8. Bxd5 {[%clk 0:04:53.3]}
8... exd5 {[%clk 0:04:21]} 9. Nc3 {[%clk 0:04:53]} 9... Be6 {[%clk 0:04:14]} 10.
O-O {[%clk 0:04:43.4]} 10... O-O {[%clk 0:04:11.2]} 11. Re1 {[%clk 0:04:38.9]}
11... Nc6 {[%clk 0:04:08.8]} 12. Bf4 {[%clk 0:04:31.9]} 12... dxe5 {[%clk
0:04:03.4]} 13. Nxe5 {[%clk 0:04:28.3]} 13... Nxe5 {[%clk 0:04:00.9]} 14. Bxe5
{[%clk 0:04:26.7]} 14... Rc8 {[%clk 0:03:51.2]} 15. Rc1 {[%clk 0:04:22.9]} 15...
Qd7 {[%clk 0:03:42.3]} 16. a3 {[%clk 0:04:10.3]} 16... Bg5 {[%clk 0:03:38.1]}
17. f4 {[%clk 0:04:08.7]} 17... Bh4 {[%clk 0:03:35.2]} 18. g3 {[%clk 0:04:07.5]}
18... Be7 {[%clk 0:03:27.7]} 19. Qf3 {[%clk 0:04:04.2]} 19... f6 {[%clk
0:03:24.4]} 20. f5 {[%clk 0:03:48.2]} 20... Bf7 {[%clk 0:03:14.4]} 21. Bf4
{[%clk 0:03:43.3]} 21... Bd8 {[%clk 0:03:06.7]} 22. a4 {[%clk 0:03:23.9]} 22...
Bb6 {[%clk 0:03:04.3]} 23. Nb5 {[%clk 0:03:16.3]} 23... Rxc1 {[%clk 0:02:53.7]}
24. Rxc1 {[%clk 0:03:13.9]} 24... a6 {[%clk 0:02:50.8]} 25. Bc7 {[%clk 0:03:04]}
25... Bxc7 {[%clk 0:02:31.6]} 26. Rxc7 {[%clk 0:02:56]} 26... Qd8 {[%clk
0:02:30.1]} 27. Rxb7 {[%clk 0:02:42.4]} 27... axb5 {[%clk 0:02:26.7]} 28. Rxb5
{[%clk 0:02:41.4]} 28... Re8 {[%clk 0:02:22.2]} 29. Kf2 {[%clk 0:02:38.3]} 29...
Qe7 {[%clk 0:02:18.9]} 30. a5 {[%clk 0:02:29]} 30... Qe1+ {[%clk 0:02:16.7]} 31.
Kg2 {[%clk 0:02:28.1]} 31... h5 {[%clk 0:01:48.9]} 32. a6 {[%clk 0:02:25.3]}
32... Re2+ {[%clk 0:01:44.5]} 33. Kh3 {[%clk 0:02:24.1]} 33... Rf2 {[%clk
0:01:42.8]} 34. Qxf2 {[%clk 0:01:58.9]} 34... Qxf2 {[%clk 0:01:41.2]} 35. a7
{[%clk 0:01:58.2]} 35... Qf1+ {[%clk 0:01:38.1]} 36. Kh4 {[%clk 0:01:56.9]}
36... Qxb5 {[%clk 0:01:36.6]} 37. a8=Q+ {[%clk 0:01:54.3]} 37... Kh7 {[%clk
0:01:35.4]} 0-1

[Event "Live Chess"]
[Site "Chess.com"]
[Date "2023.05.21"]
[Round "-"]
[White "bedsdrout"]
[Black "KeithArkell"]
[Result "1-0"]
[WhiteElo "1481"]
[BlackElo "2474"]
[TimeControl "300"]
[EndTime "7:01:03 PDT"]
[Termination "bedsdrout won by checkmate"]

1. e3 {[%clk 0:04:55]} 1... c5 {[%clk 0:04:58.7]} 2. Qh5 {[%clk 0:04:50.6]} 2...
e6 {[%clk 0:04:50.8]} 3. Nf3 {[%clk 0:04:45]} 3... Nf6 {[%clk 0:04:49.9]} 4. Qh3
{[%clk 0:04:42]} 4... d6 {[%clk 0:04:45.7]} 5. d4 {[%clk 0:04:33.6]} 5... e5
{[%clk 0:04:44.7]} 6. Bb5+ {[%clk 0:04:21.8]} 6... Nc6 {[%clk 0:04:41.9]} 7. Qh4
{[%clk 0:04:17.2]} 7... cxd4 {[%clk 0:04:40.4]} 8. O-O {[%clk 0:04:13.7]} 8...
dxe3 {[%clk 0:04:36.2]} 9. Bxe3 {[%clk 0:04:10.9]} 9... Be7 {[%clk 0:04:35.3]}
10. Rd1 {[%clk 0:04:07.2]} 10... Bd7 {[%clk 0:04:30.7]} 11. Nc3 {[%clk
0:03:59.9]} 11... O-O {[%clk 0:04:28.2]} 12. h3 {[%clk 0:03:55]} 12... Nd5
{[%clk 0:04:17.6]} 13. Ng5 {[%clk 0:03:43.4]} 13... h6 {[%clk 0:04:09.1]} 14.
Nxd5 {[%clk 0:03:32.4]} 14... Bxg5 {[%clk 0:04:08.1]} 15. Bxg5 {[%clk
0:03:29.7]} 15... Qxg5 {[%clk 0:04:06.1]} 16. Qxg5 {[%clk 0:03:28.1]} 16... hxg5
{[%clk 0:04:05.2]} 17. Bxc6 {[%clk 0:03:26.4]} 17... Bxc6 {[%clk 0:04:02.1]} 18.
Ne7+ {[%clk 0:03:21.7]} 18... Kh7 {[%clk 0:04:01.1]} 19. Nxc6 {[%clk 0:03:18.9]}
19... bxc6 {[%clk 0:03:59.8]} 20. Rxd6 {[%clk 0:03:14.6]} 20... Rfc8 {[%clk
0:03:47.1]} 21. g3 {[%clk 0:03:12.2]} 21... f6 {[%clk 0:03:45.8]} 22. Kg2 {[%clk
0:03:09.6]} 22... Rc7 {[%clk 0:03:44.7]} 23. Rad1 {[%clk 0:03:06.7]} 23... Rb8
{[%clk 0:03:41.8]} 24. b3 {[%clk 0:02:59.1]} 24... a5 {[%clk 0:03:37.8]} 25. Rd8
{[%clk 0:02:55.9]} 25... Rxd8 {[%clk 0:03:33.4]} 26. Rxd8 {[%clk 0:02:54.4]}
26... a4 {[%clk 0:03:32.9]} 27. b4 {[%clk 0:02:52.8]} 27... Rb7 {[%clk
0:03:13.7]} 28. c3 {[%clk 0:02:43]} 28... c5 {[%clk 0:03:10.2]} 29. bxc5 {[%clk
0:02:37.6]} 29... Rb5 {[%clk 0:02:50.9]} 30. Rd5 {[%clk 0:02:34.1]} 30... a3
{[%clk 0:02:16.9]} 31. Kf3 {[%clk 0:02:27.2]} 31... Kg6 {[%clk 0:02:03.7]} 32.
Ke4 {[%clk 0:02:23.8]} 32... Rb2 {[%clk 0:01:57.5]} 33. c6 {[%clk 0:02:20.8]}
33... f5+ {[%clk 0:01:07]} 34. Kxe5 {[%clk 0:02:17.6]} 34... Rxa2 {[%clk
0:01:06.3]} 35. c7 {[%clk 0:02:14.5]} 35... Re2+ {[%clk 0:01:02.7]} 36. Kd6
{[%clk 0:02:11.3]} 36... a2 {[%clk 0:00:55.8]} 37. c8=Q {[%clk 0:02:07]} 37...
a1=Q {[%clk 0:00:49.5]} 38. Qxf5+ {[%clk 0:02:02.7]} 38... Kh6 {[%clk
0:00:47.6]} 39. Qxg5+ {[%clk 0:02:00.6]} 39... Kh7 {[%clk 0:00:46.5]} 40. Qh4+
{[%clk 0:01:57.8]} 40... Kg8 {[%clk 0:00:45.8]} 41. Qd8+ {[%clk 0:01:54.6]}
41... Kh7 {[%clk 0:00:41.2]} 42. Rh5+ {[%clk 0:01:52.2]} 42... Kg6 {[%clk
0:00:38]} 43. Qg5+ {[%clk 0:01:49.8]} 43... Kf7 {[%clk 0:00:37]} 44. Qd5+ {[%clk
0:01:47.8]} 44... Kg6 {[%clk 0:00:34]} 45. Qf5# {[%clk 0:01:45.2]} 1-0

[Event "Live Chess"]
[Site "Chess.com"]
[Date "2023.05.21"]
[Round "-"]
[White "HonestJoe1"]
[Black "hturner40"]
[Result "1-0"]
[WhiteElo "2091"]
[BlackElo "1767"]
[TimeControl "300"]
[EndTime "7:01:20 PDT"]
[Termination "HonestJoe1 won by resignation"]

1. d4 {[%clk 0:04:56.2]} 1... Nf6 {[%clk 0:04:58]} 2. c4 {[%clk 0:04:54.9]} 2...
Nc6 {[%clk 0:04:56.5]} 3. Nf3 {[%clk 0:04:51.1]} 3... e5 {[%clk 0:04:55.2]} 4.
dxe5 {[%clk 0:04:44.9]} 4... Ng4 {[%clk 0:04:49.5]} 5. Nc3 {[%clk 0:04:43.7]}
5... Ngxe5 {[%clk 0:04:46.7]} 6. e3 {[%clk 0:04:42.7]} 6... Bb4 {[%clk
0:04:43.3]} 7. Bd2 {[%clk 0:04:40.1]} 7... d6 {[%clk 0:04:38.5]} 8. a3 {[%clk
0:04:38.5]} 8... Bxc3 {[%clk 0:04:31.2]} 9. Bxc3 {[%clk 0:04:37.6]} 9... O-O
{[%clk 0:04:30.3]} 10. Be2 {[%clk 0:04:35.7]} 10... Be6 {[%clk 0:04:27.7]} 11.
b3 {[%clk 0:04:31.3]} 11... f6 {[%clk 0:04:13.4]} 12. O-O {[%clk 0:04:29.1]}
12... d5 {[%clk 0:04:12.5]} 13. Nd4 {[%clk 0:04:14.7]} 13... Nxd4 {[%clk
0:04:05.9]} 14. exd4 {[%clk 0:04:13.8]} 14... Ng6 {[%clk 0:03:52.5]} 15. f4
{[%clk 0:04:06.1]} 15... Bf5 {[%clk 0:03:32.3]} 16. cxd5 {[%clk 0:03:57.7]}
16... Qxd5 {[%clk 0:03:30.8]} 17. Bc4 {[%clk 0:03:56.4]} 1-0

[Event "Live Chess"]
[Site "Chess.com"]
[Date "2023.05.21"]
[Round "-"]
[White "SimpleHarmonic1"]
[Black "chrisbradgate"]
[Result "1-0"]
[WhiteElo "2045"]
[BlackElo "864"]
[TimeControl "300"]
[EndTime "7:01:25 PDT"]
[Termination "SimpleHarmonic1 won by checkmate"]

1. e4 {[%clk 0:04:58.8]} 1... e5 {[%clk 0:04:59.2]} 2. Nf3 {[%clk 0:04:57.3]}
2... Nc6 {[%clk 0:04:57.3]} 3. Bc4 {[%clk 0:04:56.9]} 3... h6 {[%clk 0:04:55.2]}
4. d3 {[%clk 0:04:56.2]} 4... Nf6 {[%clk 0:04:49.1]} 5. O-O {[%clk 0:04:55.7]}
5... d6 {[%clk 0:04:48.2]} 6. h3 {[%clk 0:04:54.9]} 6... Qd7 {[%clk 0:04:44.5]}
7. Nc3 {[%clk 0:04:53.8]} 7... a6 {[%clk 0:04:42.3]} 8. a4 {[%clk 0:04:52]} 8...
b5 {[%clk 0:04:40.1]} 9. axb5 {[%clk 0:04:50.2]} 9... Nb4 {[%clk 0:04:35.4]} 10.
bxa6 {[%clk 0:04:45.6]} 10... Bxa6 {[%clk 0:04:31.8]} 11. Bxa6 {[%clk
0:04:26.5]} 11... Nxa6 {[%clk 0:04:29.2]} 12. Ne2 {[%clk 0:04:20.5]} 12... Be7
{[%clk 0:04:24.8]} 13. Ng3 {[%clk 0:04:17.3]} 13... O-O {[%clk 0:04:22.7]} 14.
Re1 {[%clk 0:04:15.8]} 14... Nc5 {[%clk 0:04:16.2]} 15. Be3 {[%clk 0:04:11]}
15... Qc6 {[%clk 0:04:02.5]} 16. c3 {[%clk 0:04:04.9]} 16... Rxa1 {[%clk
0:03:59.9]} 17. Qxa1 {[%clk 0:04:02]} 17... Ra8 {[%clk 0:03:58.8]} 18. Qb1
{[%clk 0:03:58.8]} 18... Qa6 {[%clk 0:03:45.7]} 19. Bxc5 {[%clk 0:03:58]} 19...
dxc5 {[%clk 0:03:41.6]} 20. Nxe5 {[%clk 0:03:57.3]} 20... g5 {[%clk 0:03:15]}
21. Nf5 {[%clk 0:03:55.5]} 21... Bf8 {[%clk 0:03:02.8]} 22. d4 {[%clk 0:03:48]}
22... cxd4 {[%clk 0:02:54.5]} 23. cxd4 {[%clk 0:03:46.7]} 23... Bb4 {[%clk
0:02:31.9]} 24. Nxh6+ {[%clk 0:03:15.8]} 24... Kg7 {[%clk 0:02:23.9]} 25. Nf5+
{[%clk 0:03:12.6]} 25... Kh7 {[%clk 0:02:14.8]} 26. Rd1 {[%clk 0:03:10.1]} 26...
Bd6 {[%clk 0:02:09]} 27. Nxf7 {[%clk 0:03:07.1]} 27... Kg6 {[%clk 0:02:02.7]}
28. N7xd6 {[%clk 0:03:00.1]} 28... cxd6 {[%clk 0:02:01.4]} 29. e5 {[%clk
0:02:59.7]} 29... dxe5 {[%clk 0:01:59.2]} 30. dxe5 {[%clk 0:02:50.2]} 30... Ne4
{[%clk 0:01:55]} 31. Qxe4 {[%clk 0:02:45.1]} 31... Qa5 {[%clk 0:01:41.5]} 32.
Rd6+ {[%clk 0:02:38.7]} 32... Kh5 {[%clk 0:01:36]} 33. Qg4# {[%clk 0:02:36.6]}
1-0

[Event "Live Chess"]
[Site "Chess.com"]
[Date "2023.05.21"]
[Round "-"]
[White "ayanmahmood123"]
[Black "gmnorfolk"]
[Result "0-1"]
[WhiteElo "325"]
[BlackElo "2137"]
[TimeControl "300"]
[EndTime "7:01:27 PDT"]
[Termination "gmnorfolk won by resignation"]

1. e4 {[%clk 0:04:58.4]} 1... c5 {[%clk 0:04:56.2]} 2. Nf3 {[%clk 0:04:54.2]}
2... d6 {[%clk 0:04:54.9]} 3. d4 {[%clk 0:04:50.4]} 3... cxd4 {[%clk 0:04:54.8]}
4. Nxd4 {[%clk 0:04:49.1]} 4... Nf6 {[%clk 0:04:54.3]} 5. Nc3 {[%clk 0:04:46.2]}
5... a6 {[%clk 0:04:53.8]} 6. Bf4 {[%clk 0:04:38.6]} 6... e5 {[%clk 0:04:49.4]}
7. Bxe5 {[%clk 0:04:22.5]} 7... dxe5 {[%clk 0:04:48.3]} 8. Nf5 {[%clk
0:04:20.2]} 8... Qxd1+ {[%clk 0:04:47.7]} 9. Rxd1 {[%clk 0:04:17.9]} 9... Bxf5
{[%clk 0:04:47.4]} 10. exf5 {[%clk 0:04:16.7]} 10... Nc6 {[%clk 0:04:46.4]} 11.
Bc4 {[%clk 0:04:10.1]} 11... Bb4 {[%clk 0:04:45]} 12. O-O {[%clk 0:04:03.7]}
12... Bxc3 {[%clk 0:04:44.4]} 13. bxc3 {[%clk 0:04:02.8]} 13... O-O {[%clk
0:04:40.1]} 14. Rfe1 {[%clk 0:03:53.6]} 14... Rfd8 {[%clk 0:04:36.9]} 15. Rxd8+
{[%clk 0:03:50.3]} 15... Rxd8 {[%clk 0:04:35.2]} 16. a4 {[%clk 0:03:17.2]} 16...
Rd2 {[%clk 0:04:32]} 17. Bb3 {[%clk 0:03:11.3]} 17... Kf8 {[%clk 0:04:25.4]} 18.
Rf1 {[%clk 0:03:03.8]} 18... Ke7 {[%clk 0:04:22.9]} 19. Re1 {[%clk 0:02:56.2]}
19... e4 {[%clk 0:04:22.8]} 20. f4 {[%clk 0:02:54.2]} 20... h5 {[%clk
0:04:17.5]} 21. g3 {[%clk 0:02:42.4]} 21... Na5 {[%clk 0:04:12.8]} 22. Ba2
{[%clk 0:02:23.7]} 22... Rxc2 {[%clk 0:04:09.9]} 23. Bb1 {[%clk 0:02:22.5]}
23... Rxc3 {[%clk 0:04:05.1]} 24. Rxe4+ {[%clk 0:02:18.3]} 24... Nxe4 {[%clk
0:04:03.9]} 25. Bxe4 {[%clk 0:02:16.7]} 25... Rc4 {[%clk 0:04:02.9]} 26. Bd3
{[%clk 0:02:12.6]} 26... Rxa4 {[%clk 0:04:00.7]} 27. Kf2 {[%clk 0:02:08.1]}
27... Ra2+ {[%clk 0:03:59.1]} 28. Ke3 {[%clk 0:02:07.2]} 28... Rxh2 {[%clk
0:03:58.5]} 29. Kf3 {[%clk 0:02:02.7]} 29... Rb2 {[%clk 0:03:55.6]} 30. g4
{[%clk 0:01:57]} 30... hxg4+ {[%clk 0:03:52.1]} 31. Kxg4 {[%clk 0:01:56.9]}
31... Kf6 {[%clk 0:03:50]} 32. Be4 {[%clk 0:01:49.2]} 32... Rb4 {[%clk
0:03:49.9]} 33. Bd5 {[%clk 0:01:46.9]} 33... Nc6 {[%clk 0:03:49]} 0-1

[Event "Live Chess"]
[Site "Chess.com"]
[Date "2023.05.21"]
[Round "-"]
[White "diana21strabt"]
[Black "whatnot126"]
[Result "0-1"]
[WhiteElo "1763"]
[BlackElo "2068"]
[TimeControl "300"]
[EndTime "7:01:30 PDT"]
[Termination "whatnot126 won by resignation"]

1. e4 {[%clk 0:04:57.6]} 1... d6 {[%clk 0:04:59.9]} 2. d4 {[%clk 0:04:55.8]}
2... Nf6 {[%clk 0:04:59.2]} 3. Nc3 {[%clk 0:04:53.8]} 3... g6 {[%clk 0:04:58.6]}
4. Nf3 {[%clk 0:04:52.2]} 4... Bg7 {[%clk 0:04:58]} 5. h3 {[%clk 0:04:47.5]}
5... O-O {[%clk 0:04:54.1]} 6. Be3 {[%clk 0:04:46.3]} 6... c6 {[%clk 0:04:49.9]}
7. Qd2 {[%clk 0:04:44.1]} 7... Qa5 {[%clk 0:04:48.4]} 8. Be2 {[%clk 0:04:41.6]}
8... b5 {[%clk 0:04:47.4]} 9. O-O {[%clk 0:04:37.7]} 9... b4 {[%clk 0:04:46.4]}
10. Nd1 {[%clk 0:04:25.8]} 10... Nxe4 {[%clk 0:04:45.2]} 11. Qd3 {[%clk
0:04:17.2]} 11... Bf5 {[%clk 0:04:43.1]} 12. Qb3 {[%clk 0:04:06.3]} 12... Be6
{[%clk 0:04:08.9]} 13. Bc4 {[%clk 0:04:01.3]} 13... d5 {[%clk 0:04:04.1]} 14.
Bd3 {[%clk 0:03:57.2]} 14... f5 {[%clk 0:04:01.2]} 15. Ne5 {[%clk 0:03:53.8]}
15... Nd7 {[%clk 0:03:55.9]} 16. Nxc6 {[%clk 0:03:50.6]} 16... Qc7 {[%clk
0:03:55]} 17. Nxb4 {[%clk 0:03:47]} 17... Qd6 {[%clk 0:03:39.5]} 18. f3 {[%clk
0:03:30.4]} 18... Ng3 {[%clk 0:03:37.3]} 19. Re1 {[%clk 0:03:24.3]} 19... Rab8
{[%clk 0:03:33.1]} 20. a3 {[%clk 0:02:39.1]} 20... a5 {[%clk 0:03:30.4]} 21. Bd2
{[%clk 0:02:35.2]} 21... axb4 {[%clk 0:03:21.2]} 22. Bxb4 {[%clk 0:02:33.7]}
22... Bxd4+ {[%clk 0:03:14.3]} 23. Ne3 {[%clk 0:02:31.9]} 23... Qb6 {[%clk
0:03:12]} 24. Bd2 {[%clk 0:02:25.1]} 24... f4 {[%clk 0:03:10.9]} 25. Qxb6 {[%clk
0:02:19.9]} 25... Rxb6 {[%clk 0:03:05.9]} 26. c3 {[%clk 0:02:15.9]} 26... Bxe3+
{[%clk 0:03:04.4]} 27. Bxe3 {[%clk 0:02:14.9]} 27... fxe3 {[%clk 0:03:04.3]} 28.
Rxe3 {[%clk 0:02:14]} 28... Nc5 {[%clk 0:03:00.4]} 29. Rae1 {[%clk 0:02:06.6]}
29... Nf5 {[%clk 0:02:54.6]} 30. Bxf5 {[%clk 0:02:04.7]} 30... gxf5 {[%clk
0:02:43.4]} 31. b4 {[%clk 0:02:03.5]} 31... Ne4 {[%clk 0:02:38.2]} 32. fxe4
{[%clk 0:02:01.9]} 32... fxe4 {[%clk 0:02:37.4]} 33. c4 {[%clk 0:01:50.8]} 33...
Ra8 {[%clk 0:02:33.9]} 34. cxd5 {[%clk 0:01:48.7]} 34... Bxd5 {[%clk 0:02:32.8]}
35. Rd1 {[%clk 0:01:47.8]} 35... e6 {[%clk 0:02:26.1]} 36. Kf2 {[%clk
0:01:43.4]} 36... Rba6 {[%clk 0:02:22.6]} 37. Ra1 {[%clk 0:01:42.1]} 37... Kf7
{[%clk 0:02:20.6]} 38. Kg3 {[%clk 0:01:41.1]} 38... Kf6 {[%clk 0:02:17.9]} 39.
Kf4 {[%clk 0:01:39.9]} 39... e5+ {[%clk 0:02:16]} 40. Kg3 {[%clk 0:01:38.8]}
40... Ke6 {[%clk 0:02:13]} 41. Rc3 {[%clk 0:01:36]} 41... Rc6 {[%clk 0:02:09.5]}
42. Rxc6+ {[%clk 0:01:34]} 42... Bxc6 {[%clk 0:02:09.4]} 43. Kf2 {[%clk
0:01:32.7]} 43... Kd5 {[%clk 0:02:06.9]} 44. Ke3 {[%clk 0:01:31.4]} 44... Ba4
{[%clk 0:02:05.3]} 45. Rc1 {[%clk 0:01:28.6]} 45... Ra7 {[%clk 0:02:03.2]} 46.
Rc5+ {[%clk 0:01:27.3]} 46... Kd6 {[%clk 0:02:02.8]} 47. Kxe4 {[%clk 0:01:25.8]}
47... Bc6+ {[%clk 0:02:00.8]} 48. Ke3 {[%clk 0:01:18.4]} 48... Rxa3+ {[%clk
0:01:59.5]} 49. Kf2 {[%clk 0:01:15.9]} 49... Ra2+ {[%clk 0:01:58.5]} 50. Ke1
{[%clk 0:01:14.7]} 50... Rxg2 {[%clk 0:01:56.3]} 51. Rc3 {[%clk 0:01:11.2]}
51... Rb2 {[%clk 0:01:52.8]} 52. Rc4 {[%clk 0:01:07.7]} 52... Bd5 {[%clk
0:01:46.3]} 53. Rh4 {[%clk 0:01:05.2]} 53... Bg8 {[%clk 0:01:41.6]} 54. Kd1
{[%clk 0:01:03.7]} 54... Kd5 {[%clk 0:01:37.8]} 55. Kc1 {[%clk 0:01:02.7]} 55...
Rg2 {[%clk 0:01:35.2]} 56. b5 {[%clk 0:00:57.5]} 56... Kc5 {[%clk 0:01:32.2]}
57. Rh5 {[%clk 0:00:56.4]} 57... Kxb5 {[%clk 0:01:29.3]} 58. Rxe5+ {[%clk
0:00:55]} 58... Kc4 {[%clk 0:01:28.4]} 59. Rh5 {[%clk 0:00:50.5]} 59... Kc3
{[%clk 0:01:19.9]} 60. Kd1 {[%clk 0:00:49.1]} 60... Kd3 {[%clk 0:01:11.2]} 61.
Ke1 {[%clk 0:00:48]} 61... Ke3 {[%clk 0:01:08.4]} 62. Kf1 {[%clk 0:00:46.7]}
62... Rh2 {[%clk 0:01:01.1]} 63. Kg1 {[%clk 0:00:45.2]} 63... Rc2 {[%clk
0:00:54]} 64. Rg5 {[%clk 0:00:43.8]} 64... Bc4 {[%clk 0:00:51.2]} 65. Re5+
{[%clk 0:00:37.4]} 65... Kf4 {[%clk 0:00:49.8]} 66. Re1 {[%clk 0:00:35.5]} 66...
Kg3 {[%clk 0:00:46.3]} 67. Re3+ {[%clk 0:00:33.6]} 67... Kh4 {[%clk 0:00:45.8]}
68. Re4+ {[%clk 0:00:32.4]} 68... Kg5 {[%clk 0:00:43.9]} 69. h4+ {[%clk
0:00:30.9]} 69... Kf5 {[%clk 0:00:42.3]} 70. Re1 {[%clk 0:00:28.9]} 70... Bd5
{[%clk 0:00:35.8]} 71. Rf1+ {[%clk 0:00:27]} 71... Kg4 {[%clk 0:00:34.1]} 72.
Rd1 {[%clk 0:00:25.9]} 72... Be4 {[%clk 0:00:30.8]} 73. Rd4 {[%clk 0:00:24.4]}
73... Kf4 {[%clk 0:00:27.4]} 74. h5 {[%clk 0:00:22.2]} 74... Rg2+ {[%clk
0:00:25.4]} 75. Kf1 {[%clk 0:00:21.4]} 75... Rh2 {[%clk 0:00:24.3]} 76. Rd7
{[%clk 0:00:12.2]} 76... Rxh5 {[%clk 0:00:22.7]} 77. Rf7+ {[%clk 0:00:11.6]}
77... Ke5 {[%clk 0:00:21.3]} 78. Re7+ {[%clk 0:00:10.5]} 78... Kf4 {[%clk
0:00:20.4]} 79. Ke2 {[%clk 0:00:09.8]} 79... Rh2+ {[%clk 0:00:18.7]} 80. Kd1
{[%clk 0:00:09.4]} 80... Ke3 {[%clk 0:00:18]} 81. Rf7 {[%clk 0:00:07.3]} 81...
Rh1+ {[%clk 0:00:17.4]} 0-1

[Event "Live Chess"]
[Site "Chess.com"]
[Date "2023.05.21"]
[Round "-"]
[White "OleksiyJr1"]
[Black "WelshTiger"]
[Result "0-1"]
[WhiteElo "1026"]
[BlackElo "2328"]
[TimeControl "300"]
[EndTime "7:01:39 PDT"]
[Termination "WelshTiger won by resignation"]

1. e4 {[%clk 0:04:59.1]} 1... c5 {[%clk 0:04:55.8]} 2. Nf3 {[%clk 0:04:46.8]}
2... d6 {[%clk 0:04:53.6]} 3. d4 {[%clk 0:04:43.7]} 3... cxd4 {[%clk 0:04:52.5]}
4. Qxd4 {[%clk 0:04:43.6]} 4... a6 {[%clk 0:04:51.2]} 5. Nc3 {[%clk 0:04:42]}
5... Nc6 {[%clk 0:04:49.7]} 6. Qe3 {[%clk 0:04:41.5]} 6... g6 {[%clk 0:04:49.3]}
7. Bd2 {[%clk 0:04:41]} 7... Bh6 {[%clk 0:04:47.6]} 8. O-O-O {[%clk 0:04:40.6]}
8... Bxe3 {[%clk 0:04:46.6]} 9. Bxe3 {[%clk 0:04:40.4]} 9... Nf6 {[%clk
0:04:45]} 10. Bg5 {[%clk 0:04:38.2]} 10... Qa5 {[%clk 0:04:38.1]} 11. Bxf6
{[%clk 0:04:38.1]} 11... exf6 {[%clk 0:04:36.7]} 0-1

[Event "Live Chess"]
[Site "Chess.com"]
[Date "2023.05.21"]
[Round "-"]
[White "CheckThis4"]
[Black "Olisingapore"]
[Result "1-0"]
[WhiteElo "2524"]
[BlackElo "1785"]
[TimeControl "300"]
[EndTime "7:01:43 PDT"]
[Termination "CheckThis4 won by resignation"]

1. d4 {[%clk 0:04:59]} 1... Nf6 {[%clk 0:04:58.9]} 2. Nc3 {[%clk 0:04:57.7]}
2... d5 {[%clk 0:04:57.9]} 3. e4 {[%clk 0:04:57.2]} 3... Nxe4 {[%clk 0:04:55.1]}
4. Nxe4 {[%clk 0:04:56.1]} 4... dxe4 {[%clk 0:04:55]} 5. Bc4 {[%clk 0:04:55.2]}
5... e5 {[%clk 0:04:49.5]} 6. Qh5 {[%clk 0:04:42.8]} 6... Qe7 {[%clk 0:04:44.8]}
7. c3 {[%clk 0:04:25.9]} 7... Nc6 {[%clk 0:04:36.1]} 8. Bg5 {[%clk 0:04:24.1]}
8... Qd7 {[%clk 0:04:30.3]} 9. O-O-O {[%clk 0:04:18.3]} 9... h6 {[%clk
0:04:24.7]} 10. dxe5 {[%clk 0:04:13.8]} 10... Qf5 {[%clk 0:04:14.2]} 11. Nh3
{[%clk 0:03:57.4]} 11... Be6 {[%clk 0:04:05.9]} 12. Bxe6 {[%clk 0:03:47.3]}
12... Qxe6 {[%clk 0:03:59.7]} 13. Bh4 {[%clk 0:03:43]} 13... Qxe5 {[%clk
0:03:56.1]} 14. Qxe5+ {[%clk 0:03:30.4]} 14... Nxe5 {[%clk 0:03:56]} 15. Rhe1
{[%clk 0:03:29]} 15... Bd6 {[%clk 0:03:45.8]} 16. Rxe4 {[%clk 0:03:25.1]} 16...
O-O {[%clk 0:03:35.3]} 17. Bg3 {[%clk 0:03:23.2]} 17... Rfe8 {[%clk 0:03:33.9]}
18. Kc2 {[%clk 0:03:16.4]} 18... f5 {[%clk 0:03:22.8]} 19. Re2 {[%clk
0:03:14.8]} 19... Rad8 {[%clk 0:03:19.4]} 20. Rde1 {[%clk 0:03:13.4]} 20... Kf7
{[%clk 0:03:17]} 21. Bxe5 {[%clk 0:03:11.5]} 21... Bxe5 {[%clk 0:03:15.3]} 22.
Rxe5 {[%clk 0:03:10.5]} 22... Rxe5 {[%clk 0:03:12.7]} 23. Rxe5 {[%clk
0:03:10.1]} 23... Kf6 {[%clk 0:03:12.1]} 24. Re2 {[%clk 0:03:06.1]} 24... g5
{[%clk 0:03:11.1]} 25. f4 {[%clk 0:03:04.9]} 25... g4 {[%clk 0:03:10.1]} 26. Nf2
{[%clk 0:03:04]} 1-0

[Event "Live Chess"]
[Site "Chess.com"]
[Date "2023.05.21"]
[Round "-"]
[White "Ian-Morley"]
[Black "lateforthesky"]
[Result "0-1"]
[WhiteElo "1087"]
[BlackElo "2111"]
[TimeControl "300"]
[EndTime "7:01:44 PDT"]
[Termination "lateforthesky won by resignation"]

1. e4 {[%clk 0:04:59.4]} 1... c5 {[%clk 0:04:56.9]} 2. Nf3 {[%clk 0:04:57.2]}
2... Nf6 {[%clk 0:04:55.7]} 3. Bb5 {[%clk 0:04:42.7]} 3... Nxe4 {[%clk
0:04:46.8]} 4. O-O {[%clk 0:04:36.5]} 4... Nf6 {[%clk 0:04:42.7]} 5. Re1 {[%clk
0:04:34.8]} 5... e6 {[%clk 0:04:40.2]} 6. Nc3 {[%clk 0:04:33.2]} 6... Be7 {[%clk
0:04:37.8]} 7. Ne4 {[%clk 0:04:31.9]} 7... O-O {[%clk 0:04:33.7]} 8. Nxf6+
{[%clk 0:04:30.6]} 8... Bxf6 {[%clk 0:04:32.5]} 9. c3 {[%clk 0:04:30.1]} 9... d5
{[%clk 0:04:28.9]} 10. d4 {[%clk 0:04:28.9]} 10... cxd4 {[%clk 0:04:26.8]} 11.
cxd4 {[%clk 0:04:28]} 11... Nc6 {[%clk 0:04:24.3]} 12. Bxc6 {[%clk 0:04:26.9]}
12... bxc6 {[%clk 0:04:23.3]} 13. Rb1 {[%clk 0:04:24.6]} 13... Qa5 {[%clk
0:04:08.8]} 14. a3 {[%clk 0:04:19.4]} 14... c5 {[%clk 0:04:07.4]} 15. dxc5
{[%clk 0:04:16.5]} 15... Qxc5 {[%clk 0:04:05.2]} 16. Be3 {[%clk 0:04:12.7]}
16... Qd6 {[%clk 0:03:54.3]} 17. Bd4 {[%clk 0:04:02.3]} 17... Bxd4 {[%clk
0:03:50.9]} 18. Nxd4 {[%clk 0:04:00.8]} 18... Bd7 {[%clk 0:03:48.7]} 19. a4
{[%clk 0:03:47.8]} 19... Rac8 {[%clk 0:03:46]} 20. Nb5 {[%clk 0:03:43.4]} 20...
Bxb5 {[%clk 0:03:43]} 21. axb5 {[%clk 0:03:42]} 21... Qb4 {[%clk 0:03:40.5]} 22.
Rc1 {[%clk 0:03:38.3]} 22... Qxb5 {[%clk 0:03:37.9]} 23. Rxc8 {[%clk 0:03:36.9]}
23... Rxc8 {[%clk 0:03:36.3]} 24. Qb1 {[%clk 0:03:31.8]} 24... g6 {[%clk
0:03:18.5]} 25. Rc1 {[%clk 0:03:29.9]} 25... Rxc1+ {[%clk 0:03:04.6]} 26. Qxc1
{[%clk 0:03:28.8]} 26... Qc4 {[%clk 0:03:03.3]} 27. Qxc4 {[%clk 0:03:20.4]}
27... dxc4 {[%clk 0:03:02]} 28. Kf1 {[%clk 0:03:19.6]} 28... Kf8 {[%clk
0:03:00.3]} 29. Ke2 {[%clk 0:03:19]} 29... Ke7 {[%clk 0:02:59.3]} 30. Kd2 {[%clk
0:03:18.5]} 30... Kd6 {[%clk 0:02:57.4]} 31. Kc3 {[%clk 0:03:17.8]} 31... Kc5
{[%clk 0:02:56.4]} 32. b3 {[%clk 0:03:17.3]} 32... cxb3 {[%clk 0:02:54.2]} 33.
Kxb3 {[%clk 0:03:16.8]} 33... Kd4 {[%clk 0:02:53.5]} 0-1